bitfinex/quotes_ETHUSD_20220103
["timestamp","ask_amount","ask_price","bid_price","bid_amount"]
[1641212631149,0.00477845,3830.9,3830.8,11.40106235]
[1641212631754,0.05979209,3831.0,3830.8,11.40106235]
[1641212631960,0.05979209,3831.0,3830.9,4.98562942]
[1641212632255,0.05979209,3831.0,3830.9,10.51926828]
[1641212632459,0.05979209,3831.0,3830.9,6.7821596]
[1641212633297,3.826,3831.6,3831.2,0.130464]
[1641212633504,3.826,3831.6,3831.4,0.3]
[1641212633704,0.00341054,3831.5,3831.4,0.3]
[1641212633903,0.00341054,3831.5,3831.4,6.52]
[1641212634704,0.00341054,3831.5,3831.4,19.44741816]
[1641212634910,3.816,3832.1,3831.5,12.28106089]
[1641212635111,0.0017208,3832.3,3831.6,11.65889667]
[1641212635304,0.00284212,3832.0,3831.6,14.35353348]
[1641212635506,6.21,3832.7,3831.7,0.06591743]
[1641212635706,6.21,3832.7,3832.1,4.758]
[1641212635906,3.78,3833.2,3832.8,0.1303961]
[1641212636107,3.78,3833.2,3832.9,5.599]
[1641212636307,3.78,3833.2,3833.0,6.2]
[1641212636509,3.78,3833.2,3833.1,9.53271704]
[1641212636766,0.0626458,3833.3,3833.1,11.13271704]
[1641212636966,0.0626458,3833.3,3833.2,0.033275]
[1641212637172,0.0626458,3833.3,3833.2,5.631875]
[1641212637367,0.00298264,3833.3,3833.2,12.83894938]
[1641212637567,0.00298264,3833.3,3833.2,14.13494452]
[1641212637967,0.00298264,3833.3,3833.2,10.3986]
[1641212638166,0.00298264,3833.3,3833.2,14.15503256]
[1641212638370,0.00298264,3833.3,3833.2,10.3986]
[1641212640494,0.00298264,3833.3,3833.2,9.0176]
[1641212640699,3.70298264,3833.3,3833.1,0.3]
[1641212640900,6.66377882,3833.3,3832.8,2.60426]
[1641212641099,2.862462,3832.9,3832.8,1.60426]
[1641212641303,0.012462,3832.9,3832.8,1.60426]
[1641212642000,2.97325818,3832.9,3832.8,1.60426]
[1641212642200,2.97325818,3832.9,3832.8,6.82226]
[1641212642402,2.97325818,3832.9,3832.8,7.12226]
[1641212643002,2.96079618,3832.9,3832.8,7.12226]
[1641212644248,0.05932487,3833.2,3833.0,0.65213]
[1641212644443,0.05932487,3833.2,3833.1,5.2178]
[1641212644842,0.05932487,3833.2,3833.1,5.5178]
[1641212645244,0.00298264,3833.3,3833.1,5.5178]
[1641212648402,0.00298264,3833.3,3833.1,6.82194]
[1641212648598,0.00298264,3833.3,3833.2,0.65206]
[1641212648797,0.00298264,3833.3,3833.2,5.86966]
[1641212648998,0.00298264,3833.3,3833.2,6.16966]
[1641212653547,0.00298264,3833.3,3833.2,7.30758002]
[1641212654547,0.00298264,3833.3,3833.2,6.16966]
[1641212660446,5.56361538,3833.3,3833.2,6.16966]
[1641212667060,5.56361538,3833.3,3833.2,5.5176]
[1641212667259,5.56247854,3833.3,3833.2,5.5176]
[1641212668057,6.73833983,3833.3,3833.2,5.5176]
[1641212668258,6.73833983,3833.3,3833.2,5.476158]
[1641212672823,5.56247854,3833.3,3833.2,5.476158]
[1641212675264,5.56247854,3833.3,3833.2,6.128218]
[1641212678395,5.56247854,3833.3,3833.2,5.86966]
[1641212680700,5.56247854,3833.3,3833.2,7.46966]
[1641212681405,6.98390968,3833.3,3833.2,7.46966]
[1641212682461,10.75095863,3833.3,3833.2,7.46966]
[1641212682658,6.98390968,3833.3,3833.2,7.46966]
[1641212682858,10.75068907,3833.3,3833.2,7.46966]
[1641212683057,6.98390968,3833.3,3833.2,7.46966]
[1641212685909,5.56247944,3833.3,3833.2,7.46966]
[1641212699976,5.56247944,3833.3,3833.2,6.46966]
[1641212700379,5.56247944,3833.3,3833.2,7.46966]
[1641212708231,5.56247944,3833.3,3833.2,7.47126]
[1641212713165,6.62185631,3833.3,3833.2,5.87126]
[1641212713364,6.62185631,3833.3,3833.2,5.2192]
[1641212713968,10.02185631,3833.3,3833.2,5.2192]
[1641212714367,8.5,3833.2,3832.6,1.30433]
[1641212714564,2.1344144,3833.0,3832.6,1.30433]
[1641212714769,2.1344144,3833.0,3831.5,0.381]
[1641212714770,0.012621,3832.7,3831.0,0.381]
[1641212714967,0.012621,3832.7,3831.3,5.2191]
[1641212715164,0.012621,3832.7,3831.3,5.22933163]
[1641212715369,0.68119592,3832.6,3831.3,5.22933163]
[1641212715605,0.65235,3831.8,3831.3,5.22933163]
[1641212715806,4.46848529,3831.8,3831.7,0.65237]
[1641212716007,4.46848529,3831.8,3831.7,5.2196]
[1641212716008,3.85230312,3831.8,3831.7,5.2196]
[1641212716209,3.79761024,3831.8,3831.7,5.22755793]
[1641212716814,0.6525,3831.7,3831.2,0.0017208]
[1641212717014,0.65252,3831.5,3831.2,0.0017208]
[1641212717213,5.68832815,3831.4,3831.3,0.0022737]
[1641212717920,8.18832815,3831.4,3831.3,0.0022737]
[1641212718116,11.14896089,3831.4,3831.3,0.0022737]
[1641212718317,8.64896089,3831.4,3831.3,0.0022737]
[1641212719355,8.29477598,3831.4,3831.3,0.0022737]
[1641212719552,2.96063274,3831.4,3831.3,0.0022737]
[1641212719953,2.96063274,3831.4,3831.3,5.2201]
[1641212720153,2.96911568,3831.4,3831.3,5.5201]
[1641212720352,2.96911568,3831.4,3831.3,5.8201]
[1641212721863,2.96911568,3831.4,3831.3,6.8201]
[1641212723129,0.00848294,3831.4,3831.3,6.8201]
[1641212729264,2.60848294,3831.4,3831.3,6.8201]
[1641212730270,2.60848294,3831.4,3831.3,5.8201]
[1641212732418,6.4648058,3831.4,3831.3,5.8201]
[1641212735266,2.60848294,3831.4,3831.3,5.8201]
[1641212739916,2.60848294,3831.4,3831.3,6.8201]
[1641212741521,2.60848294,3831.4,3831.3,5.8201]
[1641212742767,5.57050146,3831.4,3831.3,5.8201]
[1641212742969,2.60848294,3831.4,3831.3,5.8201]
[1641212743570,2.60848294,3831.4,3831.3,6.8201]
[1641212743769,2.49682602,3831.4,3831.3,6.8201]
[1641212744970,5.45884454,3831.4,3831.3,6.8201]
[1641212745825,6.14007935,3831.4,3831.3,6.8201]
[1641212748826,6.14007935,3831.4,3831.3,8.1248]
[1641212751493,6.79244815,3831.4,3831.3,5.56772]
[1641212751680,6.14007935,3831.4,3831.3,5.56772]
[1641212751879,6.14007935,3831.4,3831.3,5.86772]
[1641212752086,6.14007935,3831.4,3831.3,6.16772]
[1641212754217,3.17806083,3831.4,3831.3,6.16772]
[1641212758568,3.17806083,3831.4,3831.3,4.86302]
[1641212758769,6.95315004,3831.4,3831.3,3.86302]
[1641212758968,3.17806083,3831.4,3831.3,3.56302]
[1641212759168,6.96287766,3831.4,3831.3,3.55999505]
[1641212759371,3.17806083,3831.4,3831.3,3.55999505]
[1641212759576,3.17806083,3831.4,3831.3,3.26302]
[1641212759773,6.99864598,3831.4,3831.3,3.26302]
[1641212759970,9.99800631,3831.4,3831.3,3.26302]
[1641212760270,6.14018958,3831.4,3831.3,3.26302]
[1641212761121,6.14018958,3831.4,3831.3,3.56302]
[1641212761719,6.14018958,3831.4,3831.3,3.26302]
[1641212763723,9.93339869,3831.4,3831.3,3.26302]
[1641212764123,6.14018958,3831.4,3831.3,3.26302]
[1641212764774,9.92965756,3831.4,3831.3,3.26302]
[1641212764980,6.14018958,3831.4,3831.3,3.26302]
[1641212765176,9.96136718,3831.4,3831.3,3.26302]
[1641212765375,6.14018958,3831.4,3831.3,3.26302]
[1641212767880,6.79263958,3831.4,3831.1,0.65246]
[1641212768127,1.3048971,3831.3,3831.1,0.95246]
[1641212768329,1.3048971,3831.3,3831.2,0.00284212]
[1641212768529,4.26702585,3831.3,3831.2,0.00284212]
[1641212771144,4.26702585,3831.3,3831.2,0.30284212]
[1641212771344,3.61457875,3831.3,3831.2,5.98384212]
[1641212771540,3.61457875,3831.3,3831.2,11.20404212]
[1641212771784,2.96212875,3831.3,3831.2,12.20404212]
[1641212771982,3.14927602,3831.4,3831.2,12.20404212]
[1641212772182,3.09927602,3831.4,3831.3,7.65]
[1641212772383,3.09927602,3831.4,3831.3,10.4534737]
[1641212772884,3.09927602,3831.4,3831.3,6.6034737]
[1641212776422,2.49682602,3831.4,3831.3,6.6034737]
[1641212776622,2.49682602,3831.4,3831.3,7.5557237]
[1641212781372,2.49682602,3831.4,3831.3,11.0557237]
[1641212781772,2.49682602,3831.4,3831.3,7.5557237]
[1641212782375,2.49682602,3831.4,3831.3,7.5574445]
[1641212799542,2.49682602,3831.4,3831.3,7.1764445]
[1641212800343,3.5390426,3831.4,3831.3,7.1764445]
[1641212800545,7.44753078,3831.4,3831.3,5.8764445]
[1641212800747,7.44753078,3831.4,3831.3,5.2241945]
[1641212801544,10.41001311,3831.4,3831.3,5.2241945]
[1641212801971,10.41001311,3831.4,3831.3,5.5241945]
[1641212802370,10.41001311,3831.4,3831.3,5.5219208]
[1641212808043,6.50152493,3831.4,3831.3,5.5219208]
[1641212808245,10.31745599,3831.4,3831.3,5.5219208]
[1641212813827,10.31745599,3831.4,3831.3,0.3016508]
[1641212816535,10.31745599,3831.4,3831.3,0.0017208]
[1641212816776,0.6525544,3831.2,3830.7,0.95254]
[1641212816990,0.6525544,3831.2,3830.7,0.6]
[1641212816991,0.65256,3831.0,3830.7,0.6]
[1641212817184,9.8275482,3830.9,3830.8,5.22591581]
[1641212817886,12.6275482,3830.9,3830.8,0.00472581]
[1641212818084,5.25,3830.8,3830.6,0.18273691]
[1641212818384,3.96582238,3830.7,3830.1,1.30516]
[1641212818586,5.27113238,3830.7,3830.2,5.2214]
[1641212818885,8.23361471,3830.7,3830.2,5.22481054]
[1641212819084,8.23361471,3830.7,3830.2,5.52481054]
[1641212819287,8.23361471,3830.7,3830.2,5.82481054]
[1641212819490,0.6526529,3830.5,3830.2,5.82481054]
[1641212820084,0.6814515,3830.4,3830.2,5.82481054]
[1641212823429,0.6814515,3830.4,3830.3,0.65262]
[1641212823629,0.6814515,3830.4,3830.3,5.87412]
[1641212824030,0.6814515,3830.4,3830.3,6.87412]
[1641212830442,3.2814515,3830.4,3830.3,6.87412]
[1641212842603,3.2814515,3830.4,3830.3,7.25512]
[1641212843443,3.6597,3831.4,3830.4,8.8]
[1641212843645,6.29533,3831.7,3830.4,8.8]
[1641212843646,4.9905,3831.7,3830.8,0.65238]
[1641212843844,0.00227369,3831.2,3830.9,0.381]
[1641212844041,0.00227369,3831.2,3831.0,5.2206]
[1641212844243,0.65234,3831.3,3831.1,4.231]
[1641212844442,0.65234,3831.3,3831.1,5.231]
[1641212844644,0.65234,3831.3,3831.2,0.3]
[1641212844843,0.65234,3831.3,3831.2,0.681]
[1641212845045,0.65518211,3831.3,3831.2,0.681]
[1641212846986,0.65518211,3831.3,3831.2,0.381]
[1641212847387,3.90518211,3831.3,3831.2,0.381]
[1641212848586,3.90518211,3831.3,3831.2,0.3]
[1641212848988,3.90518211,3831.3,3831.1,1.95235]
[1641212849187,3.90518211,3831.3,3831.1,0.95235]
[1641212849387,0.00227369,3831.2,3831.1,0.95235]
[1641212849589,0.00227369,3831.2,3831.1,6.17275]
[1641212864889,0.00070749,3831.2,3831.1,6.12275]
[1641212866355,0.00070749,3831.2,3831.1,7.12275]
[1641212866752,2.60070749,3831.2,3831.1,7.12275]
[1641212871285,2.60070749,3831.2,3831.1,6.12275]
[1641212871688,2.53700787,3831.2,3831.1,6.12275]
[1641212872489,5.49938901,3831.2,3831.1,6.12275]
[1641212879297,2.53700787,3831.2,3831.1,6.12275]
[1641212882443,2.53700787,3831.2,3831.1,7.12275]
[1641212885727,2.53700787,3831.2,3831.1,8.36906816]
[1641212887930,2.53700787,3831.2,3831.1,8.75006816]
[1641212888138,2.53700787,3831.2,3831.1,8.72506816]
[1641212891345,2.53700787,3831.2,3831.1,11.33466816]
[1641212894215,2.53700787,3831.2,3831.1,11.36509697]
[1641212894606,0.06012608,3831.6,3831.2,8.8]
[1641212894805,0.06012608,3831.6,3831.4,1.3045]
[1641212895009,0.06012608,3831.6,3831.5,14.4009]
[1641212895208,0.65226,3832.0,3831.5,14.4009]
[1641212895406,0.00227369,3831.6,3831.5,6.9009]
[1641212896545,0.00227369,3831.6,3831.5,7.55321]
[1641212896745,2.60227369,3831.6,3831.5,11.40321]
[1641212896949,2.60227369,3831.6,3831.5,11.44179728]
[1641212897148,2.60227369,3831.6,3831.5,7.59179728]
[1641212898548,2.60227369,3831.6,3831.5,11.09179728]
[1641212901719,0.05,3832.1,3831.8,0.7825563]
[1641212901919,0.05,3832.1,3831.9,5.63581666]
[1641212902120,0.05,3832.1,3832.0,10.1375712]
[1641212902319,0.05,3832.1,3832.0,16.93721366]
[1641212902522,0.05978557,3832.2,3832.0,18.07611366]
[1641212902725,0.05978557,3832.2,3832.1,10.79592122]
[1641212902919,0.05978557,3832.2,3832.1,16.39602122]
[1641212903147,0.05978557,3832.2,3832.1,17.39602122]
[1641212903352,4.39941,3833.1,3832.1,17.39602122]
[1641212903548,6.26831032,3832.5,3832.3,0.24533318]
[1641212903749,6.26831032,3832.5,3832.3,5.64533318]
[1641212903750,0.00170527,3832.4,3832.3,5.64533318]
[1641212903950,0.00170527,3832.4,3832.3,11.54503318]
[1641212904151,0.00170527,3832.4,3832.3,12.54503318]
[1641212904361,0.00170527,3832.4,3832.3,12.84503318]
[1641212904556,0.00170527,3832.4,3832.3,17.47927549]
[1641212905557,0.00170527,3832.4,3832.3,17.76973764]
[1641212905757,0.05978462,3832.5,3832.3,17.76973764]
[1641212905758,0.05978462,3832.5,3832.4,9.07793781]
[1641212905958,0.05978462,3832.5,3832.4,16.63378781]
[1641212906158,0.05978462,3832.5,3832.4,17.63378781]
[1641212906358,3.7473,3833.1,3832.4,15.03378781]
[1641212906558,3.7473,3833.1,3832.7,0.24533318]
[1641212906810,3.7473,3833.1,3833.0,4.73498594]
[1641212907002,3.7473,3833.1,3833.0,2.33699594]
[1641212907204,0.06227897,3833.1,3833.0,3.63699594]
[1641212907403,0.00397897,3833.1,3833.0,4.01799594]
[1641212909405,0.00397897,3833.1,3833.0,2.87834318]
[1641212909605,0.00397897,3833.1,3833.0,8.09614318]
[1641212911047,0.00397897,3833.1,3833.0,6.71514318]
[1641212911248,0.00397897,3833.1,3833.0,5.46313318]
[1641212912455,0.00397897,3833.1,3833.0,5.76313318]
[1641212912655,0.00397897,3833.1,3833.0,6.06313318]
[1641212916711,0.00397897,3833.1,3833.0,5.46313318]
[1641212918047,0.00397897,3833.1,3833.0,6.06313318]
[1641212920654,0.00397897,3833.1,3833.0,5.76313318]
[1641212921254,2.96484129,3833.1,3833.0,5.76313318]
[1641212922501,2.96484129,3833.1,3833.0,6.06313318]
[1641212925405,2.96484129,3833.1,3833.0,5.46313318]
[1641212925655,2.96484129,3833.1,3833.0,6.06313318]
[1641212926259,2.96484129,3833.1,3833.0,5.76313318]
[1641212926558,5.76484129,3833.1,3833.0,6.06313318]
[1641212927167,2.96484129,3833.1,3833.0,6.06313318]
[1641212927971,2.96484129,3833.1,3833.0,5.76313318]
[1641212928873,2.96484129,3833.1,3833.0,6.06313318]
[1641212930513,6.21484129,3833.1,3833.0,6.06313318]
[1641212931719,2.96484129,3833.1,3833.0,6.06313318]
[1641212937213,2.96086232,3833.1,3833.0,6.06313318]
[1641212955225,5.91086232,3833.1,3833.0,6.06313318]
[1641212956051,2.96086232,3833.1,3833.0,6.06313318]
[1641212968106,5.76086232,3833.1,3833.0,6.06313318]
[1641212969408,5.76086232,3833.1,3833.0,5.46313318]
[1641212970008,11.76086232,3833.1,3833.0,0.24358318]
[1641212970312,0.65244,3832.6,3832.0,0.05]
[1641212970556,0.65244,3832.4,3832.0,0.05]
[1641212970757,0.65244,3832.4,3832.1,0.00170527]
[1641212970758,1.9573024,3832.4,3832.1,0.00170527]
[1641212971157,0.68122709,3832.3,3832.1,0.00170527]
[1641212971563,9.03542525,3832.2,3832.1,0.00170527]
[1641212972060,10.03542525,3832.2,3832.1,0.00170527]
[1641212972262,4.88542525,3832.2,3832.1,0.00170527]
[1641212972662,7.84628757,3832.2,3832.1,0.00170527]
[1641212973078,6.84628757,3832.2,3832.1,0.00170527]
[1641212975108,7.84628757,3832.2,3832.1,0.00170527]
[1641212976111,6.84628757,3832.2,3832.1,0.00170527]
[1641212976913,9.69628757,3832.2,3832.1,0.00170527]
[1641212977114,10.69628757,3832.2,3832.1,0.00170527]
[1641212978559,7.84628757,3832.2,3832.1,0.00170527]
[1641212980162,6.84628757,3832.2,3832.1,0.00170527]
[1641212981060,7.84628757,3832.2,3832.1,0.00170527]
[1641212982711,9.15127027,3832.2,3832.0,0.05]
[1641212982910,10.41351859,3832.1,3832.0,0.05]
[1641212983113,10.41351859,3832.1,3830.9,1.30492]
[1641212983314,1.3050108,3831.7,3831.2,5.2198]
[1641212983517,0.6525008,3831.7,3831.2,5.22491581]
[1641212983712,1.30436126,3831.5,3831.2,5.22491581]
[1641212985114,2.96086232,3831.4,3831.2,5.22491581]
[1641212988966,5.56086232,3831.4,3831.2,5.22491581]
[1641212989606,5.56086232,3831.4,3831.2,5.87738581]
[1641212990006,5.56086232,3831.4,3831.3,1.0]
[1641212990209,5.56086232,3831.4,3831.3,6.5202]
[1641212990407,2.6,3831.4,3831.3,5.5202]
[1641212991808,2.6,3831.4,3831.3,5.8202]
[1641212992013,1.29542,3831.5,3831.4,3.75]
[1641212992213,1.29542,3831.5,3831.4,5.22]
[1641212992414,1.29542,3831.5,3831.4,6.22397896]
[1641212997226,1.29542,3831.5,3831.4,10.23726929]
[1641212997424,10.06012617,3832.0,3831.4,10.73437044]
[1641212997629,10.06012617,3832.0,3831.7,0.65224]
[1641212997925,10.06012617,3832.0,3831.8,5.60220527]
[1641212998126,10.06012617,3832.0,3831.9,8.05]
[1641212998323,10.06012617,3832.0,3831.9,5.90143684]
[1641212998922,10.06012617,3832.0,3831.9,6.55364684]
[1641212999324,10.0,3832.0,3831.9,6.55364684]
[1641212999923,10.0,3832.0,3831.9,10.38724851]
[1641213000125,10.0,3832.0,3831.9,6.68409214]
[1641213000323,10.0,3832.0,3831.9,11.40525847]
[1641213000962,10.0,3832.0,3831.9,11.44532403]
[1641213001366,10.0,3832.0,3831.9,11.43539022]
[1641213001871,10.0,3832.0,3831.9,11.36403696]
[1641213002066,10.0,3832.0,3831.9,7.55364684]
[1641213002268,10.0,3832.0,3831.9,11.55396043]
[1641213002472,10.0,3832.0,3831.9,7.55364684]
[1641213002867,10.0,3832.0,3831.9,11.37869207]
[1641213003069,10.0,3832.0,3831.9,7.55364684]
[1641213004509,10.0,3832.0,3831.9,6.55364684]
[1641213005105,10.0,3832.0,3831.9,6.55251]
[1641213005312,10.0,3832.0,3831.9,7.55251]
[1641213005509,10.0,3832.0,3831.9,7.55364684]
[1641213005709,10.0,3832.0,3831.9,6.55364684]
[1641213005909,10.0,3832.0,3831.9,7.55364684]
[1641213006308,10.0,3832.0,3831.9,6.55364684]
[1641213006911,10.0,3832.0,3831.9,7.55364684]
[1641213008874,12.5,3832.0,3831.9,7.55364684]
[1641213009173,12.5,3832.0,3831.9,7.56868345]
[1641213009373,12.5,3832.0,3831.9,7.58372006]
[1641213009979,10.0,3832.0,3831.9,6.58372006]
[1641213012216,12.96168018,3832.0,3831.9,6.58372006]
[1641213013817,12.96168018,3832.0,3831.9,8.02452006]
[1641213015220,12.96168018,3832.0,3831.9,7.64352006]
[1641213015656,12.91168018,3832.0,3831.9,7.64352006]
[1641213019163,12.88205406,3832.0,3831.9,7.64352006]
[1641213019410,12.88205406,3832.0,3831.9,7.34352006]
[1641213019619,12.88205406,3832.0,3831.9,6.69131006]
[1641213020013,16.75129614,3832.0,3831.9,6.69131006]
[1641213020411,12.88205406,3832.0,3831.9,6.69131006]
[1641213020814,12.88205406,3832.0,3831.9,6.99131006]
[1641213021015,12.88205406,3832.0,3831.9,7.64368006]
[1641213021414,16.68611895,3832.0,3831.9,7.64368006]
[1641213021615,16.68611895,3832.0,3831.9,6.99131006]
[1641213021816,16.68611895,3832.0,3831.9,6.69131006]
[1641213022220,12.88205406,3832.0,3831.9,6.99131006]
[1641213022621,16.69043133,3832.0,3831.9,6.99131006]
[1641213023054,16.69892664,3832.0,3831.9,6.99131006]
[1641213023456,12.88205406,3832.0,3831.9,6.99131006]
[1641213026361,12.88205406,3832.0,3831.9,6.69131006]
[1641213026562,16.79446315,3832.0,3831.9,6.69131006]
[1641213026806,12.88205406,3832.0,3831.9,6.69131006]
[1641213028416,16.71421928,3832.0,3831.9,6.69131006]
[1641213028612,12.88205406,3832.0,3831.9,6.69131006]
[1641213029412,16.7154719,3832.0,3831.9,6.69131006]
[1641213029612,12.88205406,3832.0,3831.9,6.69131006]
[1641213030213,16.69492587,3832.0,3831.9,6.69131006]
[1641213030665,12.88205406,3832.0,3831.9,6.69131006]
[1641213030862,16.72666128,3832.0,3831.9,6.69131006]
[1641213032573,21.17013755,3832.0,3831.9,6.69131006]
[1641213032968,21.16177281,3832.0,3831.9,6.69131006]
[1641213033368,17.31716559,3832.0,3831.9,6.69131006]
[1641213034170,12.87368932,3832.0,3831.9,6.69131006]
[1641213035412,12.87368932,3832.0,3831.9,6.69017322]
[1641213035612,16.8783611,3832.0,3831.9,6.69017322]
[1641213036016,17.55964825,3832.0,3831.9,6.69017322]
[1641213036416,22.00312452,3832.0,3831.9,6.69017322]
[1641213037416,17.55964825,3832.0,3831.9,6.69017322]
[1641213037815,22.00312452,3832.0,3831.9,6.69017322]
[1641213038460,17.55964825,3832.0,3831.9,6.69017322]
[1641213039657,22.00312452,3832.0,3831.9,6.69017322]
[1641213041159,23.75650983,3832.0,3831.9,6.69017322]
[1641213042526,19.75183805,3832.0,3831.9,6.69017322]
[1641213043126,15.30836178,3832.0,3831.9,6.69017322]
[1641213044535,13.55497647,3832.0,3831.9,6.69017322]
[1641213049087,13.55497647,3832.0,3831.9,6.99017322]
[1641213049722,13.55497647,3832.0,3831.9,6.69017322]
[1641213050724,13.55497647,3832.0,3831.9,6.99017322]
[1641213052329,13.55497647,3832.0,3831.9,6.69017322]
[1641213052734,13.55497647,3832.0,3831.9,6.68806362]
[1641213053193,15.30836178,3832.0,3831.9,6.68806362]
[1641213053592,16.30836178,3832.0,3831.9,6.68806362]
[1641213054792,18.91138279,3832.0,3831.9,6.68806362]
[1641213055193,19.91138279,3832.0,3831.9,6.68806362]
[1641213055593,2.81220861,3830.1,3829.9,0.12095929]
[1641213055799,3.63749925,3829.8,3829.1,0.3828468]
[1641213055994,3.63749925,3829.8,3829.1,0.0018468]
[1641213056194,3.63749925,3829.8,3829.6,5.2224]
[1641213056594,3.63749925,3829.8,3829.7,0.01364216]
[1641213056831,5.01878214,3829.8,3829.7,5.23594216]
[1641213058234,8.93705545,3829.8,3829.7,5.23594216]
[1641213059840,8.71111529,3829.8,3829.7,5.23594216]
[1641213060240,9.07213236,3829.8,3829.7,5.23594216]
[1641213060440,9.08482382,3829.8,3829.7,5.23594216]
[1641213060667,10.08482382,3829.8,3829.7,5.23594216]
[1641213061068,10.9314736,3829.8,3829.7,5.23594216]
[1641213061671,10.9314736,3829.8,3829.7,4.44564216]
[1641213061672,15.28482382,3829.8,3829.7,4.44564216]
[1641213061872,8.9,3829.7,3829.1,0.0018468]
[1641213062077,15.661,3829.6,3829.1,0.0018468]
[1641213062272,15.661,3829.6,3829.2,0.00284212]
[1641213062573,14.29304987,3829.8,3829.2,0.00284212]
[1641213062774,14.33615841,3829.8,3829.2,0.00284212]
[1641213063172,1.0,3829.6,3829.2,0.00284212]
[1641213064174,1.0,3829.7,3829.2,0.00284212]
[1641213065644,4.06507274,3829.6,3829.2,0.00284212]
[1641213065847,1.0,3829.7,3829.2,0.00284212]
[1641213066045,8.89268214,3829.8,3829.2,0.00284212]
[1641213066247,3.95,3829.3,3829.2,0.00284212]
[1641213067946,7.91432424,3829.3,3829.2,0.00284212]
[1641213068867,1.0,3829.3,3829.2,0.00284212]
[1641213070070,3.6928,3829.4,3829.2,0.00284212]
[1641213071173,3.75774616,3829.4,3829.2,0.00284212]
[1641213073024,1.0,3829.3,3829.2,0.00284212]
[1641213074229,3.75774616,3829.4,3829.2,0.00284212]
[1641213074230,0.06494616,3829.4,3829.2,0.00284212]
[1641213074528,0.06494616,3829.4,3829.2,1.35444212]
[1641213074729,2.96378286,3829.3,3829.2,1.35444212]
[1641213074930,2.96378286,3829.3,3829.2,1.3516]
[1641213075875,2.96378286,3829.3,3829.2,0.3]
[1641213076071,2.96378286,3829.3,3829.1,0.3018468]
[1641213076673,2.96378286,3829.3,3829.1,0.0018468]
[1641213082634,7.09789073,3829.2,3829.1,0.0018468]
[1641213082830,3.4,3829.2,3829.1,0.0018468]
[1641213083074,3.96378286,3829.3,3829.1,0.00525734]
[1641213083474,3.96378286,3829.3,3829.2,0.00284212]
[1641213083876,1.0,3829.3,3829.2,0.00284212]
[1641213085280,0.06494616,3829.4,3829.2,0.00284212]
[1641213086076,1.0,3829.3,3829.2,0.00284212]
[1641213087138,0.06494616,3829.4,3829.2,0.00284212]
[1641213087139,1.06494616,3829.4,3829.2,0.00284212]
[1641213087338,3.76878758,3829.3,3829.2,0.00284212]
[1641213087540,1.06494616,3829.4,3829.2,0.00284212]
[1641213087844,3.76367576,3829.3,3829.2,0.00284212]
[1641213088244,2.82518746,3829.4,3829.2,0.00284212]
[1641213088439,2.75,3829.3,3829.2,0.00284212]
[1641213088841,6.47363876,3829.3,3829.2,0.00284212]
[1641213089043,2.75,3829.3,3829.2,0.00284212]
[1641213089240,7.49981909,3829.3,3829.2,0.00284212]
[1641213089543,3.75,3829.3,3829.2,0.00284212]
[1641213089743,7.51424145,3829.3,3829.2,0.00284212]
[1641213089941,7.60326534,3829.3,3829.2,0.00284212]
[1641213090143,7.44273736,3829.3,3829.2,0.00284212]
[1641213090347,7.45475042,3829.3,3829.2,0.00284212]
[1641213090584,3.75,3829.3,3829.2,0.00284212]
[1641213094317,1.0,3829.3,3829.2,0.00284212]
[1641213094523,4.1,3829.3,3829.2,0.00284212]
[1641213094720,1.0,3829.3,3829.2,0.00284212]
[1641213095528,1.06494616,3829.4,3829.2,0.00284212]
[1641213096121,0.06494616,3829.4,3829.2,0.00284212]
[1641213097227,1.0,3829.3,3829.2,0.00284212]
[1641213098467,6.95,3829.3,3829.2,0.00284212]
[1641213098668,11.02946006,3829.3,3829.2,0.00284212]
[1641213098870,6.95,3829.3,3829.2,0.00284212]
[1641213099073,9.91393711,3829.3,3829.2,0.00284212]
[1641213101071,3.96393711,3829.3,3829.2,0.00284212]
[1641213101669,7.79011385,3829.3,3829.2,0.00284212]
[1641213101928,3.96393711,3829.3,3829.2,0.00284212]
[1641213102730,7.69725908,3829.3,3829.2,0.00284212]
[1641213103529,3.96393711,3829.3,3829.2,0.00284212]
[1641213103729,7.71207701,3829.3,3829.2,0.00284212]
[1641213104732,7.6955391,3829.3,3829.2,0.00284212]
[1641213105132,3.96393711,3829.3,3829.2,0.00284212]
[1641213105334,7.84356709,3829.3,3829.2,0.00284212]
[1641213105565,3.96393711,3829.3,3829.2,0.00284212]
[1641213106770,7.68460508,3829.3,3829.2,0.00284212]
[1641213107377,7.69398757,3829.3,3829.2,0.00284212]
[1641213108378,3.96393711,3829.3,3829.2,0.00284212]
[1641213108976,3.96393711,3829.3,3829.2,0.00455252]
[1641213109177,3.96393711,3829.3,3829.2,0.0017104]
[1641213109425,7.06393711,3829.3,3829.2,0.00455252]
[1641213110026,3.96393711,3829.3,3829.2,0.00455252]
[1641213114278,2.96393711,3829.3,3829.2,0.00455252]
[1641213115077,3.96393711,3829.3,3829.2,0.00455252]
[1641213116286,2.96393711,3829.3,3829.2,0.00455252]
[1641213117232,3.96393711,3829.3,3829.2,0.00455252]
[1641213117636,3.95681692,3829.3,3829.2,0.00455252]
[1641213122377,3.94719679,3829.3,3829.2,0.00455252]
[1641213122978,3.94719679,3829.3,3829.2,0.38555252]
[1641213123182,2.94719679,3829.3,3829.2,0.38555252]
[1641213123478,2.94719679,3829.3,3829.2,16.71670797]
[1641213123678,2.94719679,3829.3,3829.2,18.09550051]
[1641213124089,0.06494616,3829.4,3829.2,19.09550051]
[1641213124321,0.06494616,3829.4,3829.3,4.09395754]
[1641213124524,0.06494616,3829.4,3829.3,11.00003123]
[1641213124722,0.06494616,3829.4,3829.3,11.06594866]
[1641213124922,0.06494616,3829.4,3829.3,10.56594866]
[1641213126326,0.06494616,3829.4,3829.3,10.86594866]
[1641213127526,0.05845155,3829.4,3829.3,10.86594866]
[1641213128370,0.05845155,3829.4,3829.3,6.97199112]
[1641213128573,0.05845155,3829.4,3829.3,10.73084661]
[1641213128972,0.05845155,3829.4,3829.3,10.7380216]
[1641213130073,3.3166,3830.7,3829.3,10.7380216]
[1641213130074,1.7602413,3830.9,3829.8,3.5790477]
[1641213130274,1.7602413,3830.9,3829.9,9.63269718]
[1641213130472,1.7602413,3830.9,3830.1,4.758]
[1641213130473,0.00454739,3830.5,3830.1,4.758]
[1641213130673,0.00454739,3830.5,3830.2,6.6027]
[1641213130871,0.00397896,3830.4,3830.2,6.6027]
[1641213131071,0.00397896,3830.4,3830.3,9.12828768]
[1641213131272,4.32280385,3831.0,3830.3,14.73078768]